[Event "*** Titled Tuesday Blitz"]
[Site "Chess.com"]
[Date "2018.07.03"]
[Round "1"]
[White "Yaacovn"]
[Black "Saitama_Hero"]
[Result "1/2-1/2"]
[WhiteElo "2636"]
[BlackElo "2326"]
[TimeControl "180+2"]
[EndTime "13:08:35 PDT"]
[Termination "Game drawn - insufficient material"]

1. d4 {[%clk 0:02:51.5]} 1... Nf6 {[%clk 0:02:59.6]} 2. Nf3 {[%clk 0:02:52.3]}
2... g6 {[%clk 0:03:01]} 3. e3 {[%clk 0:02:53.3]} 3... Bg7 {[%clk 0:03:01.5]} 4.
Be2 {[%clk 0:02:54.2]} 4... O-O {[%clk 0:03:02.8]} 5. b3 {[%clk 0:02:47.2]} 5...
d6 {[%clk 0:03:04.7]} 6. Bb2 {[%clk 0:02:46.6]} 6... Nbd7 {[%clk 0:03:01.1]} 7.
O-O {[%clk 0:02:46.7]} 7... e5 {[%clk 0:03:00.5]} 8. dxe5 {[%clk 0:02:48]} 8...
Ng4 {[%clk 0:02:59.2]} 9. c4 {[%clk 0:02:48.8]} 9... Ngxe5 {[%clk 0:03:00.2]}
10. Nxe5 {[%clk 0:02:49.4]} 10... Nxe5 {[%clk 0:03:01]} 11. Qd2 {[%clk
0:02:50.1]} 11... Be6 {[%clk 0:02:58.5]} 12. Nc3 {[%clk 0:02:50.1]} 12... Qh4
{[%clk 0:02:49.4]} 13. Rae1 {[%clk 0:02:48.5]} 13... Rfe8 {[%clk 0:02:43.4]} 14.
e4 {[%clk 0:02:49.2]} 14... c6 {[%clk 0:01:59.1]} 15. f4 {[%clk 0:02:48.1]}
15... Ng4 {[%clk 0:02:00.3]} 16. Bxg4 {[%clk 0:02:47.2]} 16... Bxg4 {[%clk
0:01:59.9]} 17. Na4 {[%clk 0:02:42.9]} 17... Bxb2 {[%clk 0:01:50.7]} 18. Nxb2
{[%clk 0:02:44.8]} 18... Rad8 {[%clk 0:01:48.7]} 19. Nd3 {[%clk 0:02:43.2]}
19... Qf6 {[%clk 0:01:45.1]} 20. Nf2 {[%clk 0:02:30.4]} 20... Bc8 {[%clk
0:01:45.9]} 21. f5 {[%clk 0:02:30.8]} 21... h5 {[%clk 0:01:33.3]} 22. g4 {[%clk
0:02:15.1]} 22... d5 {[%clk 0:01:22]} 23. exd5 {[%clk 0:02:06.5]} 23... Rxe1
{[%clk 0:01:17.1]} 24. Rxe1 {[%clk 0:02:04.9]} 24... cxd5 {[%clk 0:01:19]} 25.
cxd5 {[%clk 0:02:04.2]} 25... hxg4 {[%clk 0:01:07.5]} 26. Nxg4 {[%clk
0:01:54.5]} 26... Qb6+ {[%clk 0:01:08.8]} 27. Qf2 {[%clk 0:01:39.6]} 27... Qxf2+
{[%clk 0:01:03.6]} 28. Kxf2 {[%clk 0:01:41.5]} 28... Bxf5 {[%clk 0:01:02.2]} 29.
Nh6+ {[%clk 0:01:42.5]} 29... Kg7 {[%clk 0:01:00.2]} 30. Nxf5+ {[%clk 0:01:44]}
30... gxf5 {[%clk 0:01:01.2]} 31. Rd1 {[%clk 0:01:45.2]} 31... Kf6 {[%clk
0:01:00.7]} 32. d6 {[%clk 0:01:46.1]} 32... Ke6 {[%clk 0:00:59.3]} 33. Kf3
{[%clk 0:01:40.9]} 33... Rxd6 {[%clk 0:00:59.2]} 34. Rxd6+ {[%clk 0:01:41.1]}
34... Kxd6 {[%clk 0:01:00.1]} 35. Kf4 {[%clk 0:01:41.8]} 35... Ke6 {[%clk
0:01:00.5]} 36. b4 {[%clk 0:01:16]} 36... b5 {[%clk 0:00:36.7]} 37. h3 {[%clk
0:01:01.7]} 37... Kf6 {[%clk 0:00:36.5]} 38. h4 {[%clk 0:00:56.1]} 38... Kg6
{[%clk 0:00:33.9]} 39. Ke5 {[%clk 0:00:54.4]} 39... Kh5 {[%clk 0:00:35.8]} 40.
Kxf5 {[%clk 0:00:55.1]} 40... Kxh4 {[%clk 0:00:35.2]} 41. Kf6 {[%clk 0:00:56.6]}
41... Kg4 {[%clk 0:00:35.8]} 42. Kxf7 {[%clk 0:00:58.1]} 42... Kf4 {[%clk
0:00:37.3]} 43. Ke6 {[%clk 0:00:59.5]} 43... Ke4 {[%clk 0:00:38.3]} 44. Kd6
{[%clk 0:00:49]} 44... Kd4 {[%clk 0:00:38.6]} 45. Kc6 {[%clk 0:00:47]} 45... Kc4
{[%clk 0:00:38]} 46. a3 {[%clk 0:00:47.8]} 46... Kb3 {[%clk 0:00:27]} 47. Kxb5
{[%clk 0:00:40.7]} 47... Kxa3 {[%clk 0:00:28.4]} 48. Ka5 {[%clk 0:00:41.3]}
48... a6 {[%clk 0:00:23.5]} 49. b5 {[%clk 0:00:39.1]} 49... axb5 {[%clk
0:00:23.3]} 50. Kxb5 {[%clk 0:00:41]} 1/2-1/2

[Event "*** Titled Tuesday Blitz"]
[Site "Chess.com"]
[Date "2018.07.03"]
[Round "1"]
[White "Caterpiller35"]
[Black "djamir"]
[Result "0-1"]
[WhiteElo "2283"]
[BlackElo "2605"]
[TimeControl "180+2"]
[EndTime "13:08:43 PDT"]
[Termination "djamir won by resignation"]

1. d4 {[%clk 0:03:01.3]} 1... f5 {[%clk 0:02:53.7]} 2. Bf4 {[%clk 0:02:58]} 2...
Nf6 {[%clk 0:02:52.1]} 3. Nc3 {[%clk 0:02:56.1]} 3... g6 {[%clk 0:02:43.5]} 4.
h4 {[%clk 0:02:55.8]} 4... h6 {[%clk 0:02:39.5]} 5. e4 {[%clk 0:02:52.9]} 5...
fxe4 {[%clk 0:02:35.3]} 6. f3 {[%clk 0:02:47.7]} 6... d5 {[%clk 0:02:20]} 7.
fxe4 {[%clk 0:02:47.2]} 7... dxe4 {[%clk 0:02:17]} 8. Bc4 {[%clk 0:02:47.9]}
8... Bg4 {[%clk 0:02:09.8]} 9. Qd2 {[%clk 0:02:39.7]} 9... Bg7 {[%clk
0:01:53.9]} 10. Nge2 {[%clk 0:02:28.7]} 10... Nbd7 {[%clk 0:01:48.6]} 11. Nb5
{[%clk 0:02:17.9]} 11... Rc8 {[%clk 0:01:13.8]} 12. Nxa7 {[%clk 0:02:16.5]}
12... Ra8 {[%clk 0:01:13.6]} 13. Nb5 {[%clk 0:02:16.8]} 13... Rc8 {[%clk
0:01:14.7]} 14. Qa5 {[%clk 0:00:41.4]} 14... b6 {[%clk 0:01:04.4]} 15. Qa7
{[%clk 0:00:40.4]} 15... c6 {[%clk 0:00:36.5]} 16. Bc7 {[%clk 0:00:35.3]} 16...
cxb5 {[%clk 0:00:34.8]} 17. Bxd8 {[%clk 0:00:35.8]} 17... Rxc4 {[%clk 0:00:36]}
18. Bxb6 {[%clk 0:00:32.4]} 18... Bxe2 {[%clk 0:00:21.3]} 19. Kxe2 {[%clk
0:00:28.9]} 19... Rxc2+ {[%clk 0:00:22.5]} 20. Kd1 {[%clk 0:00:29.5]} 20... Rxg2
{[%clk 0:00:23.4]} 21. Qa8+ {[%clk 0:00:22.6]} 21... Kf7 {[%clk 0:00:23.7]} 22.
Qc6 {[%clk 0:00:23.4]} 22... Nxb6 {[%clk 0:00:20.8]} 23. Qxb6 {[%clk 0:00:23.6]}
23... e3 {[%clk 0:00:21.8]} 24. Qxb5 {[%clk 0:00:20.2]} 24... Rd8 {[%clk
0:00:21.6]} 25. Qc4+ {[%clk 0:00:14.8]} 25... e6 {[%clk 0:00:23]} 26. Re1 {[%clk
0:00:14.8]} 26... Rd2+ {[%clk 0:00:22.8]} 27. Kc1 {[%clk 0:00:15.2]} 27... R2xd4
{[%clk 0:00:23.6]} 28. Qc7+ {[%clk 0:00:13.3]} 28... R8d7 {[%clk 0:00:23.7]} 29.
Qc2 {[%clk 0:00:13.9]} 29... Ng4 {[%clk 0:00:21.5]} 30. Rg1 {[%clk 0:00:11.1]}
30... h5 {[%clk 0:00:20.7]} 31. a4 {[%clk 0:00:09.6]} 31... Rd2 {[%clk
0:00:21.8]} 32. Qc4 {[%clk 0:00:09.3]} 32... Bxb2+ {[%clk 0:00:22.3]} 33. Kb1
{[%clk 0:00:09.5]} 33... Bxa1 {[%clk 0:00:19.4]} 34. Kxa1 {[%clk 0:00:10.5]}
34... e2 {[%clk 0:00:20]} 35. Qf4+ {[%clk 0:00:10.8]} 35... Kg7 {[%clk
0:00:20.2]} 36. Qe3 {[%clk 0:00:04]} 36... Rd1+ {[%clk 0:00:20.7]} 0-1

[Event "*** Titled Tuesday Blitz"]
[Site "Chess.com"]
[Date "2018.07.03"]
[Round "1"]
[White "QDcoach"]
[Black "Muguet7"]
[Result "1-0"]
[WhiteElo "2668"]
[BlackElo "2335"]
[TimeControl "180+2"]
[EndTime "13:08:44 PDT"]
[Termination "QDcoach won by resignation"]

1. Nf3 {[%clk 0:03:01.9]} 1... Nf6 {[%clk 0:02:59.9]} 2. c4 {[%clk 0:03:02.8]}
2... e6 {[%clk 0:03:00.3]} 3. d4 {[%clk 0:03:03.9]} 3... b6 {[%clk 0:02:59.6]}
4. a3 {[%clk 0:03:04.4]} 4... Bb7 {[%clk 0:02:58.5]} 5. Nc3 {[%clk 0:03:05.8]}
5... d5 {[%clk 0:02:59.4]} 6. Bf4 {[%clk 0:03:05.7]} 6... Be7 {[%clk 0:02:48.3]}
7. e3 {[%clk 0:03:01.2]} 7... O-O {[%clk 0:02:47.3]} 8. Rc1 {[%clk 0:02:56.6]}
8... dxc4 {[%clk 0:02:43.7]} 9. Bxc4 {[%clk 0:02:48.7]} 9... Nbd7 {[%clk
0:02:43.5]} 10. O-O {[%clk 0:02:49.4]} 10... a6 {[%clk 0:02:40.5]} 11. Bd3
{[%clk 0:02:49.6]} 11... c5 {[%clk 0:02:39]} 12. Bb1 {[%clk 0:02:50.5]} 12...
cxd4 {[%clk 0:02:35.7]} 13. exd4 {[%clk 0:02:51.5]} 13... Nd5 {[%clk 0:02:27.5]}
14. Qd3 {[%clk 0:02:41.5]} 14... N7f6 {[%clk 0:02:25.8]} 15. Be5 {[%clk
0:02:42.2]} 15... g6 {[%clk 0:02:22.9]} 16. Qe2 {[%clk 0:02:35.9]} 16... Rc8
{[%clk 0:02:19.1]} 17. Ne4 {[%clk 0:02:36.9]} 17... Nxe4 {[%clk 0:02:14.2]} 18.
Bxe4 {[%clk 0:02:37.3]} 18... Qd7 {[%clk 0:02:08.7]} 19. h4 {[%clk 0:02:35.4]}
19... Rxc1 {[%clk 0:02:04.5]} 20. Rxc1 {[%clk 0:02:35.6]} 20... Rc8 {[%clk
0:02:05.4]} 21. Qd2 {[%clk 0:02:35.6]} 21... f6 {[%clk 0:02:02.1]} 22. Bg3
{[%clk 0:02:27.8]} 22... Kg7 {[%clk 0:01:53]} 23. h5 {[%clk 0:02:25.4]} 23...
Rxc1+ {[%clk 0:01:45.3]} 24. Qxc1 {[%clk 0:02:25.6]} 24... Qc8 {[%clk
0:01:45.9]} 25. Qd2 {[%clk 0:02:22.7]} 25... Qd7 {[%clk 0:01:35.1]} 26. Qc2
{[%clk 0:02:02.4]} 26... gxh5 {[%clk 0:01:15.6]} 27. Qd2 {[%clk 0:01:53.3]}
27... Bd6 {[%clk 0:01:14]} 28. Bh4 {[%clk 0:01:46.2]} 28... Bf4 {[%clk
0:01:10.8]} 29. Qc2 {[%clk 0:01:45.2]} 29... Ne7 {[%clk 0:00:57.8]} 30. Bxb7
{[%clk 0:01:33.7]} 30... Qxb7 {[%clk 0:00:58.2]} 31. Qe2 {[%clk 0:01:35.2]}
31... Qd5 {[%clk 0:00:55.6]} 32. Qxa6 {[%clk 0:01:34.5]} 32... Nf5 {[%clk
0:00:54]} 33. Qa7+ {[%clk 0:01:28]} 33... Kg6 {[%clk 0:00:54.5]} 34. Qxb6 {[%clk
0:01:24.2]} 34... Qe4 {[%clk 0:00:50.6]} 35. Qb5 {[%clk 0:01:05.9]} 35... Qb1+
{[%clk 0:00:47.2]} 36. Qf1 {[%clk 0:01:06.6]} 36... Qxb2 {[%clk 0:00:47]} 37. a4
{[%clk 0:01:07.5]} 37... Qa2 {[%clk 0:00:38.6]} 38. Qd1 {[%clk 0:01:04.3]} 38...
Qd5 {[%clk 0:00:30.9]} 39. Qe1 {[%clk 0:01:00.9]} 39... Qa2 {[%clk 0:00:31]} 40.
a5 {[%clk 0:01:01]} 40... Qc4 {[%clk 0:00:26.2]} 41. Qf1 {[%clk 0:00:56.2]}
41... Qa4 {[%clk 0:00:26.2]} 42. a6 {[%clk 0:00:57]} 42... Nxd4 {[%clk
0:00:27.3]} 43. Nxd4 {[%clk 0:00:53.7]} 43... Qxd4 {[%clk 0:00:28.2]} 44. Qb1+
{[%clk 0:00:54.9]} 44... f5 {[%clk 0:00:28.7]} 45. g3 {[%clk 0:00:47.3]} 45...
Bd6 {[%clk 0:00:29.4]} 46. Qa2 {[%clk 0:00:45.9]} 46... Qd1+ {[%clk 0:00:30.2]}
47. Kg2 {[%clk 0:00:46]} 47... Qe2 {[%clk 0:00:26.4]} 48. Qxe2 {[%clk
0:00:45.7]} 1-0

[Event "*** Titled Tuesday Blitz"]
[Site "Chess.com"]
[Date "2018.07.03"]
[Round "1"]
[White "SARGISMV"]
[Black "Sven_Tica"]
[Result "0-1"]
[WhiteElo "2331"]
[BlackElo "2658"]
[TimeControl "180+2"]
[EndTime "13:08:51 PDT"]
[Termination "Sven_Tica won by resignation"]

1. d4 {[%clk 0:02:59.3]} 1... Nf6 {[%clk 0:03:00.7]} 2. c4 {[%clk 0:02:58.1]}
2... e6 {[%clk 0:03:01.9]} 3. g3 {[%clk 0:02:57.6]} 3... d5 {[%clk 0:03:02.8]}
4. Bg2 {[%clk 0:02:58.2]} 4... Be7 {[%clk 0:03:04.1]} 5. Nf3 {[%clk 0:02:59]}
5... O-O {[%clk 0:03:05.7]} 6. O-O {[%clk 0:03:00]} 6... Nbd7 {[%clk 0:03:07.3]}
7. Qc2 {[%clk 0:02:59.1]} 7... c6 {[%clk 0:03:08.5]} 8. Nc3 {[%clk 0:02:51.5]}
8... b6 {[%clk 0:03:06.8]} 9. cxd5 {[%clk 0:02:47]} 9... cxd5 {[%clk 0:03:06.2]}
10. Bf4 {[%clk 0:02:41.1]} 10... Bb7 {[%clk 0:03:06.5]} 11. Rac1 {[%clk
0:02:39.1]} 11... a6 {[%clk 0:03:05.5]} 12. a4 {[%clk 0:02:33.1]} 12... Rc8
{[%clk 0:03:06]} 13. Qb3 {[%clk 0:02:33.8]} 13... Rc4 {[%clk 0:03:03]} 14. Rc2
{[%clk 0:02:29.1]} 14... Qa8 {[%clk 0:03:03.1]} 15. Rfc1 {[%clk 0:02:27.6]}
15... Rfc8 {[%clk 0:03:04.1]} 16. e3 {[%clk 0:02:24.6]} 16... Bc6 {[%clk
0:03:02.9]} 17. Bf1 {[%clk 0:02:23]} 17... Rb4 {[%clk 0:03:02.4]} 18. Qa2 {[%clk
0:02:23.9]} 18... h6 {[%clk 0:02:50.4]} 19. Ne1 {[%clk 0:02:06.7]} 19... g5
{[%clk 0:02:43.8]} 20. Be5 {[%clk 0:02:07]} 20... Nxe5 {[%clk 0:02:28.7]} 21.
dxe5 {[%clk 0:02:08.9]} 21... Ne4 {[%clk 0:02:29.7]} 22. Nxe4 {[%clk 0:01:53.4]}
22... Rxe4 {[%clk 0:02:29.9]} 23. Nd3 {[%clk 0:01:40.2]} 23... Bd7 {[%clk
0:02:24.4]} 24. Rxc8+ {[%clk 0:01:38.1]} 24... Bxc8 {[%clk 0:02:26.3]} 25. Bg2
{[%clk 0:01:35.6]} 25... Rg4 {[%clk 0:02:27.1]} 26. h3 {[%clk 0:01:35.4]} 26...
Re4 {[%clk 0:02:25.4]} 27. Bxe4 {[%clk 0:01:26.1]} 27... dxe4 {[%clk 0:02:27.3]}
28. Qc4 {[%clk 0:01:19.4]} 28... Bb7 {[%clk 0:02:26.6]} 29. Nb4 {[%clk
0:01:18.3]} 29... Bc5 {[%clk 0:02:26.9]} 30. Nc2 {[%clk 0:01:13.1]} 30... Qb8
{[%clk 0:02:27.4]} 31. b4 {[%clk 0:01:12.3]} 31... Bf8 {[%clk 0:02:22]} 32. Qd4
{[%clk 0:01:04.4]} 32... Bg7 {[%clk 0:02:22.5]} 33. Qxb6 {[%clk 0:01:02.1]}
33... Bxe5 {[%clk 0:02:21.8]} 34. Kg2 {[%clk 0:00:52.7]} 34... Qc8 {[%clk
0:02:17.4]} 35. Qc5 {[%clk 0:00:50.3]} 35... Qb8 {[%clk 0:02:13.5]} 36. Nd4
{[%clk 0:00:50.1]} 36... Bd6 {[%clk 0:02:12.7]} 37. Qb6 {[%clk 0:00:48.8]} 37...
h5 {[%clk 0:02:06.4]} 38. b5 {[%clk 0:00:40.8]} 38... axb5 {[%clk 0:02:02.3]}
39. Nxb5 {[%clk 0:00:41.8]} 39... Be5 {[%clk 0:02:02.6]} 40. a5 {[%clk
0:00:41.7]} 40... Qa8 {[%clk 0:02:03.7]} 41. Nc7 {[%clk 0:00:41.2]} 41... Bxc7
{[%clk 0:02:00.5]} 42. Rxc7 {[%clk 0:00:40.7]} 42... Bd5 {[%clk 0:01:51.5]} 43.
a6 {[%clk 0:00:40.4]} 43... Qd8 {[%clk 0:01:52.5]} 44. a7 {[%clk 0:00:31.1]}
44... Qf6 {[%clk 0:01:53]} 45. Qb1 {[%clk 0:00:22.6]} 45... Qf3+ {[%clk
0:01:40.9]} 46. Kg1 {[%clk 0:00:23.5]} 46... h4 {[%clk 0:01:36.8]} 47. gxh4
{[%clk 0:00:20.5]} 47... Qxh3 {[%clk 0:01:34.9]} 48. a8=Q+ {[%clk 0:00:20.3]}
48... Bxa8 {[%clk 0:01:31.6]} 49. Rc8+ {[%clk 0:00:22.2]} 49... Kg7 {[%clk
0:01:31.1]} 50. Rxa8 {[%clk 0:00:24.1]} 50... Qg4+ {[%clk 0:01:30.9]} 51. Kf1
{[%clk 0:00:25.3]} 51... Qh3+ {[%clk 0:01:32.2]} 52. Kg1 {[%clk 0:00:25.7]}
52... Qg4+ {[%clk 0:01:33]} 53. Kf1 {[%clk 0:00:26.9]} 53... Qh3+ {[%clk
0:01:34.2]} 54. Ke2 {[%clk 0:00:28.1]} 54... Qf3+ {[%clk 0:01:35.8]} 55. Kd2
{[%clk 0:00:29.1]} 55... Qxf2+ {[%clk 0:01:36.5]} 56. Kc3 {[%clk 0:00:29.4]}
56... Qxe3+ {[%clk 0:01:37.2]} 57. Kb2 {[%clk 0:00:27.5]} 57... Qd4+ {[%clk
0:01:35]} 58. Kb3 {[%clk 0:00:22.3]} 58... Qd5+ {[%clk 0:01:35.8]} 59. Kb4
{[%clk 0:00:22.2]} 59... Qb7+ {[%clk 0:01:36.1]} 0-1

[Event "*** Titled Tuesday Blitz"]
[Site "Chess.com"]
[Date "2018.07.03"]
[Round "1"]
[White "GhostOfGreenval"]
[Black "FearNoEvil12"]
[Result "1-0"]
[WhiteElo "2473"]
[BlackElo "1981"]
[TimeControl "180+2"]
[EndTime "13:08:52 PDT"]
[Termination "GhostOfGreenval won by resignation"]

1. Nf3 {[%clk 0:03:01.1]} 1... a6 {[%clk 0:03:00.1]} 2. c4 {[%clk 0:03:01.3]}
2... b6 {[%clk 0:03:01.1]} 3. g3 {[%clk 0:03:02.3]} 3... Nf6 {[%clk 0:03:02]} 4.
Bg2 {[%clk 0:03:03.8]} 4... Bb7 {[%clk 0:03:03.6]} 5. O-O {[%clk 0:03:05.7]}
5... e6 {[%clk 0:03:04.8]} 6. Nc3 {[%clk 0:03:07.2]} 6... d6 {[%clk 0:03:06.1]}
7. d4 {[%clk 0:03:07]} 7... Nbd7 {[%clk 0:03:07.4]} 8. Re1 {[%clk 0:03:07.4]}
8... Be7 {[%clk 0:03:08.8]} 9. e4 {[%clk 0:03:08.7]} 9... O-O {[%clk 0:03:10.2]}
10. h3 {[%clk 0:03:03.7]} 10... c5 {[%clk 0:03:09.6]} 11. e5 {[%clk 0:02:59.5]}
11... Ne8 {[%clk 0:03:07.1]} 12. dxc5 {[%clk 0:02:52.6]} 12... Nxc5 {[%clk
0:03:04.9]} 13. b4 {[%clk 0:02:47.2]} 13... Nd7 {[%clk 0:03:04.5]} 14. exd6
{[%clk 0:02:40.7]} 14... Nxd6 {[%clk 0:03:04.4]} 15. Qb3 {[%clk 0:02:39.3]}
15... Qc7 {[%clk 0:03:00]} 16. Bf4 {[%clk 0:02:12.6]} 16... Qxc4 {[%clk
0:02:56.7]} 17. Bxd6 {[%clk 0:02:13.6]} 17... Qxb3 {[%clk 0:02:57]} 18. axb3
{[%clk 0:02:15.5]} 18... Bxd6 {[%clk 0:02:57]} 19. Rad1 {[%clk 0:02:10.1]} 19...
Bxb4 {[%clk 0:02:36.2]} 20. Rxd7 {[%clk 0:02:06.7]} 20... Bxc3 {[%clk
0:02:30.9]} 21. Rxb7 {[%clk 0:02:02.4]} 21... Bxe1 {[%clk 0:02:29.6]} 22. Nxe1
{[%clk 0:02:04.3]} 22... Rab8 {[%clk 0:02:29.8]} 23. Ra7 {[%clk 0:01:55.4]}
23... a5 {[%clk 0:02:30.8]} 24. Bc6 {[%clk 0:01:55.1]} 24... Rfc8 {[%clk
0:02:30]} 25. Bb5 {[%clk 0:01:52.4]} 25... Rc5 {[%clk 0:02:28.2]} 26. Bc4 {[%clk
0:01:49.3]} 26... g6 {[%clk 0:02:29.4]} 27. Nd3 {[%clk 0:01:50.2]} 27... Rcc8
{[%clk 0:02:22.6]} 28. Ne5 {[%clk 0:01:48.5]} 28... b5 {[%clk 0:02:22.2]} 29.
Bd3 {[%clk 0:01:42.5]} 29... Rd8 {[%clk 0:02:14.2]} 30. Nc6 {[%clk 0:01:30.3]}
30... Rxd3 {[%clk 0:02:13]} 31. Nxb8 {[%clk 0:01:31.4]} 31... Rxb3 {[%clk
0:02:13.7]} 32. Rxa5 {[%clk 0:01:32.4]} 32... Rb2 {[%clk 0:02:13.4]} 33. Nd7
{[%clk 0:01:29.2]} 33... Kg7 {[%clk 0:02:13.9]} 34. Nc5 {[%clk 0:01:28.6]} 34...
e5 {[%clk 0:02:13.3]} 35. Ra7 {[%clk 0:01:25]} 35... Kf6 {[%clk 0:02:08.3]} 36.
Rb7 {[%clk 0:01:24.1]} 36... b4 {[%clk 0:02:00.4]} 37. Kg2 {[%clk 0:01:22.6]}
37... Rb1 {[%clk 0:01:59.1]} 38. Rb6+ {[%clk 0:01:09.3]} 38... Ke7 {[%clk
0:01:54.9]} 39. Nd3 {[%clk 0:01:08.6]} 39... e4 {[%clk 0:01:51.6]} 40. Nxb4
{[%clk 0:01:07.6]} 40... Kf8 {[%clk 0:01:44.6]} 41. Nd5 {[%clk 0:01:06.8]} 41...
Rxb6 {[%clk 0:01:41.7]} 42. Nxb6 {[%clk 0:01:06.8]} 42... f5 {[%clk 0:01:43.2]}
43. Kf1 {[%clk 0:01:04.3]} 43... Kf7 {[%clk 0:01:43.9]} 44. Ke2 {[%clk 0:01:05]}
44... Ke6 {[%clk 0:01:45.4]} 45. Ke3 {[%clk 0:01:05.4]} 45... Ke5 {[%clk
0:01:46.4]} 46. Nc4+ {[%clk 0:01:06.2]} 46... Kd5 {[%clk 0:01:46.2]} 47. Nd2
{[%clk 0:01:04.5]} 47... Ke5 {[%clk 0:01:46.4]} 48. Nf1 {[%clk 0:00:38.2]} 48...
h6 {[%clk 0:01:45.2]} 49. g4 {[%clk 0:00:24.2]} 49... fxg4 {[%clk 0:01:42.7]}
50. hxg4 {[%clk 0:00:26.1]} 50... h5 {[%clk 0:01:43.7]} 51. gxh5 {[%clk
0:00:21.7]} 51... gxh5 {[%clk 0:01:44.3]} 52. Ng3 {[%clk 0:00:23.2]} 52... h4
{[%clk 0:01:45.8]} 53. Nxe4 {[%clk 0:00:24.6]} 53... h3 {[%clk 0:01:46.5]} 54.
Ng3 {[%clk 0:00:24.3]} 54... h2 {[%clk 0:01:46.4]} 55. f4+ {[%clk 0:00:24]}
55... Kf6 {[%clk 0:01:47.2]} 56. Kf2 {[%clk 0:00:24.2]} 56... Ke6 {[%clk
0:01:38.8]} 57. Kg2 {[%clk 0:00:24.4]} 57... h1=Q+ {[%clk 0:01:38.4]} 58. Kxh1
{[%clk 0:00:25.1]} 58... Kf6 {[%clk 0:01:38.4]} 59. Kg2 {[%clk 0:00:27]} 59...
Kg6 {[%clk 0:01:39.4]} 60. Kf3 {[%clk 0:00:27]} 60... Kf6 {[%clk 0:01:40.3]} 61.
Kg4 {[%clk 0:00:28.9]} 61... Kg6 {[%clk 0:01:41.3]} 62. f5+ {[%clk 0:00:27.1]}
62... Kf6 {[%clk 0:01:42]} 63. Kf4 {[%clk 0:00:29]} 63... Kf7 {[%clk 0:01:41.7]}
64. Kg5 {[%clk 0:00:30.9]} 64... Kg7 {[%clk 0:01:42.8]} 65. f6+ {[%clk
0:00:32.8]} 65... Kf7 {[%clk 0:01:44.4]} 66. Kf5 {[%clk 0:00:34.7]} 66... Kf8
{[%clk 0:01:45.4]} 67. Kg6 {[%clk 0:00:36.6]} 67... Kg8 {[%clk 0:01:46.6]} 68.
Ne4 {[%clk 0:00:37.3]} 68... Kf8 {[%clk 0:01:48.5]} 69. f7 {[%clk 0:00:38.4]}
69... Ke7 {[%clk 0:01:48.6]} 70. Kg7 {[%clk 0:00:39.6]} 70... Ke6 {[%clk
0:01:50.2]} 71. f8=Q {[%clk 0:00:41.1]} 71... Ke5 {[%clk 0:01:52.1]} 72. Nf6
{[%clk 0:00:42.1]} 72... Kd4 {[%clk 0:01:52.4]} 73. Qe7 {[%clk 0:00:42.6]} 1-0

[Event "*** Titled Tuesday Blitz"]
[Site "Chess.com"]
[Date "2018.07.03"]
[Round "1"]
[White "gemarin"]
[Black "RitvarsReimanis"]
[Result "0-1"]
[WhiteElo "1812"]
[BlackElo "2466"]
[TimeControl "180+2"]
[EndTime "13:09:14 PDT"]
[Termination "RitvarsReimanis won on time"]

1. d4 {[%clk 0:02:52.2]} 1... d5 {[%clk 0:02:53]} 2. c4 {[%clk 0:02:52.1]} 2...
c6 {[%clk 0:02:47.6]} 3. Nc3 {[%clk 0:02:51.1]} 3... e6 {[%clk 0:02:44.4]} 4. e3
{[%clk 0:02:51]} 4... f5 {[%clk 0:02:40.1]} 5. Bd3 {[%clk 0:02:39.7]} 5... Nf6
{[%clk 0:02:37.7]} 6. Nge2 {[%clk 0:02:38.4]} 6... Bd6 {[%clk 0:02:33.3]} 7. f3
{[%clk 0:02:31.4]} 7... Qc7 {[%clk 0:02:32.2]} 8. f4 {[%clk 0:02:26.9]} 8... Ne4
{[%clk 0:02:30.5]} 9. O-O {[%clk 0:02:18.7]} 9... Nd7 {[%clk 0:02:28.1]} 10. Bd2
{[%clk 0:02:00.7]} 10... Ndf6 {[%clk 0:02:24.5]} 11. Bxe4 {[%clk 0:01:49.2]}
11... fxe4 {[%clk 0:02:18.8]} 12. Ng3 {[%clk 0:01:47.7]} 12... O-O {[%clk
0:02:13.4]} 13. Rc1 {[%clk 0:01:42.6]} 13... Qd8 {[%clk 0:02:10.3]} 14. Qb3
{[%clk 0:01:29.8]} 14... Kh8 {[%clk 0:01:58.8]} 15. Be1 {[%clk 0:01:10.2]} 15...
Ng4 {[%clk 0:01:52.5]} 16. Nd1 {[%clk 0:01:09]} 16... Nh6 {[%clk 0:01:39]} 17.
Nf2 {[%clk 0:01:06.4]} 17... Qb6 {[%clk 0:01:35.5]} 18. Qc2 {[%clk 0:01:01.2]}
18... Qd8 {[%clk 0:01:33.6]} 19. Nh3 {[%clk 0:01:00.2]} 19... a5 {[%clk
0:01:25.6]} 20. a3 {[%clk 0:00:57.8]} 20... Nf5 {[%clk 0:01:24]} 21. Qe2 {[%clk
0:00:53.7]} 21... Bd7 {[%clk 0:01:21.8]} 22. Ng5 {[%clk 0:00:51.8]} 22... Qe8
{[%clk 0:01:16]} 23. Rc3 {[%clk 0:00:30.8]} 23... h6 {[%clk 0:01:13.3]} 24. Nh3
{[%clk 0:00:28.9]} 24... Qg6 {[%clk 0:01:10.4]} 25. Nh5 {[%clk 0:00:26.2]} 25...
Be7 {[%clk 0:01:02]} 26. Kh1 {[%clk 0:00:24.6]} 26... Nd6 {[%clk 0:01:02.7]} 27.
c5 {[%clk 0:00:22.4]} 27... Nc4 {[%clk 0:00:58.7]} 28. Rg1 {[%clk 0:00:15.8]}
28... Nxb2 {[%clk 0:00:55.1]} 29. f5 {[%clk 0:00:11.5]} 29... Qf7 {[%clk
0:00:44.7]} 30. N5f4 {[%clk 0:00:10.1]} 30... Nd3 {[%clk 0:00:38.7]} 31. Ng6+
{[%clk 0:00:09.9]} 31... Kg8 {[%clk 0:00:40.1]} 32. Nxf8 {[%clk 0:00:10]} 32...
Rxf8 {[%clk 0:00:42]} 33. fxe6 {[%clk 0:00:09.5]} 33... Bxe6 {[%clk 0:00:43.9]}
34. Rxd3 {[%clk 0:00:02.6]} 34... exd3 {[%clk 0:00:44.1]} 35. Qxd3 {[%clk
0:00:03.5]} 35... Bf5 {[%clk 0:00:45.7]} 36. Qe2 {[%clk 0:00:03.3]} 36... Bxh3
{[%clk 0:00:38.8]} 37. gxh3 {[%clk 0:00:03.2]} 37... Qf3+ {[%clk 0:00:38.4]} 38.
Qxf3 {[%clk 0:00:03.3]} 38... Rxf3 {[%clk 0:00:40.3]} 39. Rg3 {[%clk 0:00:03.1]}
39... Rf1+ {[%clk 0:00:29.9]} 40. Rg1 {[%clk 0:00:03.7]} 40... Rxg1+ {[%clk
0:00:27.7]} 41. Kxg1 {[%clk 0:00:03.7]} 41... a4 {[%clk 0:00:29.6]} 42. Kf2
{[%clk 0:00:03.6]} 42... Kf7 {[%clk 0:00:31.5]} 43. Kf3 {[%clk 0:00:04]} 43...
Ke6 {[%clk 0:00:33.4]} 44. e4 {[%clk 0:00:04.9]} 44... Bg5 {[%clk 0:00:31]} 45.
Bb4 {[%clk 0:00:03.7]} 45... Bc1 {[%clk 0:00:28.9]} 0-1